[Event "Titled Tuesday Blitz January 11 2022"]
[White "Shapkin, Anatoliy"]
[Black "Bluebaum, Matthias"]
[WhiteFideId "34108332"]
[BlackFideId "24651516"]
[WhiteElo "2223"]
[BlackElo "2550"]
[Result "0-1"]
[Round "03"]
[TimeControl "180+1"]
[Date "2022.01.11"]
[WhiteClock "0:00:11"]
[BlackClock "0:00:58"]

1. d4 {[%clk 0:03:00]}  Nf6 {[%clk 0:02:46]} 2. Nf3 {[%clk 0:03:00]}  d5 {[%clk 0:02:46]} 3. Bf4 {[%clk 0:02:59]}  c5 {[%clk 0:02:46]} 4. e3 {[%clk 0:02:59]}  Nc6 {[%clk 0:02:47]} 5. c3 {[%clk 0:02:59]}  Qb6 {[%clk 0:02:47]} 6. Qb3 {[%clk 0:02:58]}  c4 {[%clk 0:02:47]} 7. Qxb6 {[%clk 0:02:58]}  axb6 {[%clk 0:02:48]} 8. Na3 {[%clk 0:02:59]}  Na7 {[%clk 0:02:44]} 9. Nc2 {[%clk 0:02:54]}  Bf5 {[%clk 0:02:42]} 10. Rc1 {[%clk 0:02:51]}  Nc6 {[%clk 0:02:39]} 11. a3 {[%clk 0:02:51]}  h6 {[%clk 0:02:37]} 12. Be2 {[%clk 0:02:38]}  e6 {[%clk 0:02:37]} 13. Ne5 {[%clk 0:02:36]}  Nd7 {[%clk 0:02:24]} 14. Nxd7 {[%clk 0:02:30]}  Kxd7 {[%clk 0:02:21]} 15. f3 {[%clk 0:02:29]}  Bd6 {[%clk 0:02:21]} 16. Kf2 {[%clk 0:02:28]}  g5 {[%clk 0:02:20]} 17. Bxd6 {[%clk 0:02:27]}  Kxd6 {[%clk 0:02:20]} 18. Rhe1 {[%clk 0:02:27]}  b5 {[%clk 0:02:20]} 19. Bf1 {[%clk 0:02:26]}  Bg6 {[%clk 0:02:17]} 20. e4 {[%clk 0:02:26]}  Rhe8 {[%clk 0:02:17]} 21. e5+ {[%clk 0:02:25]}  Kc7 {[%clk 0:02:14]} 22. Ne3 {[%clk 0:02:25]}  h5 {[%clk 0:02:00]} 23. Be2 {[%clk 0:02:24]}  b4 {[%clk 0:01:59]} 24. axb4 {[%clk 0:02:19]}  Ra2 {[%clk 0:02:00]} 25. Nd1 {[%clk 0:02:15]}  Rea8 {[%clk 0:02:00]} 26. h4 {[%clk 0:02:12]}  gxh4 {[%clk 0:01:57]} 27. Rh1 {[%clk 0:02:12]}  Ra1 {[%clk 0:01:58]} 28. Ne3 {[%clk 0:02:05]}  Rxc1 {[%clk 0:01:57]} 29. Rxc1 {[%clk 0:02:05]}  Ra2 {[%clk 0:01:57]} 30. Nd1 {[%clk 0:02:03]}  Ne7 {[%clk 0:01:55]} 31. Ke3 {[%clk 0:01:32]}  Nf5+ {[%clk 0:01:54]} 32. Kf4 {[%clk 0:01:32]}  Ng3 {[%clk 0:01:54]} 33. Ke3 {[%clk 0:01:33]}  Bf5 {[%clk 0:01:42]} 34. f4 {[%clk 0:01:32]}  Kd8 {[%clk 0:01:32]} 35. Bf3 {[%clk 0:01:31]}  Ke7 {[%clk 0:01:32]} 36. Kf2 {[%clk 0:01:16]}  Kf8 {[%clk 0:01:31]} 37. Ke3 {[%clk 0:01:16]}  Kg7 {[%clk 0:01:31]} 38. Kf2 {[%clk 0:01:16]}  f6 {[%clk 0:01:31]} 39. Ke3 {[%clk 0:01:05]}  Bg6 {[%clk 0:01:28]} 40. Kf2 {[%clk 0:01:02]}  Be8 {[%clk 0:01:27]} 41. Rb1 {[%clk 0:00:49]}  Bg6 {[%clk 0:01:21]} 42. Rc1 {[%clk 0:00:49]}  Bd3 {[%clk 0:01:07]} 43. Ke3 {[%clk 0:00:42]}  Kf7 {[%clk 0:01:04]} 44. Kf2 {[%clk 0:00:42]}  Kg6 {[%clk 0:01:05]} 45. Ke3 {[%clk 0:00:39]}  Kf5 {[%clk 0:01:05]} 46. Nf2 {[%clk 0:00:33]}  fxe5 {[%clk 0:01:02]} 47. dxe5 {[%clk 0:00:30]}  Rxb2 {[%clk 0:01:00]} 48. Nxd3 {[%clk 0:00:29]}  cxd3 {[%clk 0:01:01]} 49. Kxd3 {[%clk 0:00:26]}  Kxf4 {[%clk 0:01:01]} 50. Ra1 {[%clk 0:00:26]}  h3 {[%clk 0:01:00]} 51. Bxd5 {[%clk 0:00:18]}  exd5 {[%clk 0:00:58]} 52. gxh3 {[%clk 0:00:18]}  Kxe5 {[%clk 0:00:57]} 53. Ra7 {[%clk 0:00:15]}  Rh2 {[%clk 0:00:56]} 54. Rxb7 {[%clk 0:00:15]}  Rxh3 {[%clk 0:00:57]} 55. Rc7 {[%clk 0:00:12]}  Ne4+ {[%clk 0:00:57]} 56. Kc2 {[%clk 0:00:12]}  Rxc3+ {[%clk 0:00:56]} 57. Rxc3 {[%clk 0:00:11]}  Nxc3 {[%clk 0:00:56]} 58. Kxc3 {[%clk 0:00:12]}  h4 {[%clk 0:00:57]} 59. b5 {[%clk 0:00:11]}  h3 {[%clk 0:00:58]} 0-1


[Site "https://www.chess.com"]

[Event "Titled Tuesday Blitz January 11 2022"]
[White "Shimanov, Aleksandr"]
[Black "Siddharth, Jagadeesh"]
[WhiteFideId "4198603"]
[BlackFideId "5818320"]
[WhiteElo "2636"]
[BlackElo "2127"]
[Result "1-0"]
[Round "03"]
[TimeControl "180+1"]
[Date "2022.01.11"]
[WhiteClock "0:01:43"]
[BlackClock "0:00:48"]

1. b3 {[%clk 0:03:00]}  Nf6 {[%clk 0:02:57]} 2. Bb2 {[%clk 0:03:00]}  c5 {[%clk 0:02:58]} 3. Nf3 {[%clk 0:02:59]}  Nc6 {[%clk 0:02:58]} 4. e3 {[%clk 0:02:58]}  g6 {[%clk 0:02:59]} 5. Bb5 {[%clk 0:02:49]}  Bg7 {[%clk 0:02:57]} 6. O-O {[%clk 0:02:49]}  O-O {[%clk 0:02:57]} 7. d3 {[%clk 0:02:45]}  Qc7 {[%clk 0:02:56]} 8. d4 {[%clk 0:02:37]}  cxd4 {[%clk 0:02:54]} 9. exd4 {[%clk 0:02:37]}  d5 {[%clk 0:02:54]} 10. h3 {[%clk 0:02:36]}  Bf5 {[%clk 0:02:51]} 11. c3 {[%clk 0:02:36]}  Ne4 {[%clk 0:02:48]} 12. Nbd2 {[%clk 0:02:35]}  a6 {[%clk 0:02:46]} 13. Bxc6 {[%clk 0:02:33]}  Qxc6 {[%clk 0:02:44]} 14. Rc1 {[%clk 0:02:33]}  Rac8 {[%clk 0:02:44]} 15. Re1 {[%clk 0:02:33]}  Qd7 {[%clk 0:02:39]} 16. Qe2 {[%clk 0:02:29]}  Nxd2 {[%clk 0:02:38]} 17. Qxd2 {[%clk 0:02:28]}  Qd6 {[%clk 0:02:32]} 18. Ne5 {[%clk 0:02:24]}  Be4 {[%clk 0:02:27]} 19. f3 {[%clk 0:02:22]}  Bf5 {[%clk 0:02:20]} 20. Re2 {[%clk 0:02:20]}  b5 {[%clk 0:02:13]} 21. Rce1 {[%clk 0:02:15]}  Rfe8 {[%clk 0:02:05]} 22. g4 {[%clk 0:02:11]}  Bd7 {[%clk 0:01:57]} 23. Kg2 {[%clk 0:02:10]}  Rc7 {[%clk 0:01:49]} 24. Nd3 {[%clk 0:02:08]}  e6 {[%clk 0:01:46]} 25. b4 {[%clk 0:02:04]}  a5 {[%clk 0:01:38]} 26. a3 {[%clk 0:02:01]}  axb4 {[%clk 0:01:39]} 27. axb4 {[%clk 0:02:01]}  Ra8 {[%clk 0:01:39]} 28. Nc5 {[%clk 0:02:01]}  Ra2 {[%clk 0:01:36]} 29. Qd3 {[%clk 0:02:00]}  Bh6 {[%clk 0:01:34]} 30. Bc1 {[%clk 0:01:57]}  Rxe2+ {[%clk 0:01:29]} 31. Qxe2 {[%clk 0:01:58]}  Bxc1 {[%clk 0:01:26]} 32. Rxc1 {[%clk 0:01:59]}  Ra7 {[%clk 0:01:27]} 33. Rc2 {[%clk 0:01:53]}  Ra3 {[%clk 0:01:26]} 34. Qd2 {[%clk 0:01:52]}  Kg7 {[%clk 0:01:13]} 35. Ra2 {[%clk 0:01:49]}  Rxa2 {[%clk 0:01:13]} 36. Qxa2 {[%clk 0:01:50]}  Bc6 {[%clk 0:01:06]} 37. Qe2 {[%clk 0:01:49]}  Qf4 {[%clk 0:01:03]} 38. Nd3 {[%clk 0:01:48]}  Qc7 {[%clk 0:01:03]} 39. Qe5+ {[%clk 0:01:45]}  Qxe5 {[%clk 0:01:03]} 40. dxe5 {[%clk 0:01:46]}  f6 {[%clk 0:01:01]} 41. Kf2 {[%clk 0:01:44]}  fxe5 {[%clk 0:00:49]} 42. Nxe5 {[%clk 0:01:45]}  Be8 {[%clk 0:00:50]} 43. g5 {[%clk 0:01:44]}  Kf8 {[%clk 0:00:48]} 44. Ke3 {[%clk 0:01:43]}  Ke7 {[%clk 0:00:48]} 45. Kd4 {[%clk 0:01:43]}  Kd6 {[%clk 0:00:48]} 46. f4 {[%clk 0:01:43]} 1-0


[Site "https://www.chess.com"]

[Event "Titled Tuesday Blitz January 11 2022"]
[White "Sipetin, Vladislav"]
[Black "Narayanan.S.L"]
[WhiteFideId "24176893"]
[BlackFideId "5058422"]
[WhiteElo "2228"]
[BlackElo "2494"]
[Result "0-1"]
[Round "03"]
[TimeControl "180+1"]
[Date "2022.01.11"]
[WhiteClock "0:00:01"]
[BlackClock "0:00:53"]

1. e4 {[%clk 0:03:00]}  c5 {[%clk 0:02:58]} 2. c3 {[%clk 0:03:01]}  d5 {[%clk 0:02:54]} 3. exd5 {[%clk 0:03:01]}  Qxd5 {[%clk 0:02:54]} 4. d4 {[%clk 0:03:02]}  g6 {[%clk 0:02:54]} 5. Nf3 {[%clk 0:03:02]}  Bg7 {[%clk 0:02:53]} 6. Na3 {[%clk 0:02:52]}  cxd4 {[%clk 0:02:49]} 7. Bc4 {[%clk 0:02:42]}  Qd8 {[%clk 0:02:45]} 8. Nb5 {[%clk 0:02:27]}  a6 {[%clk 0:02:38]} 9. Nbxd4 {[%clk 0:02:24]}  Nf6 {[%clk 0:02:36]} 10. O-O {[%clk 0:02:18]}  O-O {[%clk 0:02:37]} 11. Re1 {[%clk 0:02:15]}  b5 {[%clk 0:02:35]} 12. Bf1 {[%clk 0:02:06]}  Bb7 {[%clk 0:02:35]} 13. Ne5 {[%clk 0:02:06]}  Nbd7 {[%clk 0:02:35]} 14. Nec6 {[%clk 0:02:01]}  Qc7 {[%clk 0:02:34]} 15. Nxe7+ {[%clk 0:01:59]}  Kh8 {[%clk 0:02:35]} 16. a4 {[%clk 0:01:44]}  bxa4 {[%clk 0:02:34]} 17. Qxa4 {[%clk 0:01:40]}  Rae8 {[%clk 0:02:29]} 18. Qc4 {[%clk 0:01:37]}  Qd6 {[%clk 0:02:26]} 19. Ndc6 {[%clk 0:01:22]}  Bxc6 {[%clk 0:02:24]} 20. Bf4 {[%clk 0:01:22]}  Ne5 {[%clk 0:01:30]} 21. Bxe5 {[%clk 0:01:12]}  Qxe7 {[%clk 0:01:30]} 22. Qxc6 {[%clk 0:01:13]}  Rc8 {[%clk 0:01:11]} 23. Qxa6 {[%clk 0:00:57]}  Rfe8 {[%clk 0:01:11]} 24. Bb5 {[%clk 0:00:48]}  Red8 {[%clk 0:01:09]} 25. h3 {[%clk 0:00:43]}  h5 {[%clk 0:01:02]} 26. Bd4 {[%clk 0:00:36]}  Qd6 {[%clk 0:01:01]} 27. Qxd6 {[%clk 0:00:36]}  Rxd6 {[%clk 0:01:02]} 28. Ra7 {[%clk 0:00:36]}  Ng8 {[%clk 0:01:00]} 29. Bxg7+ {[%clk 0:00:16]}  Kxg7 {[%clk 0:01:01]} 30. Re8 {[%clk 0:00:16]}  Rd1+ {[%clk 0:00:58]} 31. Kh2 {[%clk 0:00:16]}  Rc5 {[%clk 0:00:56]} 32. c4 {[%clk 0:00:14]}  Rd2 {[%clk 0:00:54]} 33. b4 {[%clk 0:00:14]}  Rg5 {[%clk 0:00:55]} 34. g4 {[%clk 0:00:06]}  hxg4 {[%clk 0:00:53]} 35. h4 {[%clk 0:00:02]}  g3+ {[%clk 0:00:54]} 36. Kh3 {[%clk 0:00:01]}  g2 {[%clk 0:00:53]} 0-1


[Site "https://www.chess.com"]

[Event "Titled Tuesday Blitz January 11 2022"]
[White "Sjugirov, Sanan"]
[Black "Supatashvili, Khvicha"]
[WhiteFideId "4189302"]
[BlackFideId "13600664"]
[WhiteElo "2602"]
[BlackElo "2709"]
[Result "1-0"]
[Round "03"]
[TimeControl "180+1"]
[Date "2022.01.11"]
[WhiteClock "0:00:34"]
[BlackClock "0:00:03"]

1. e4 {[%clk 0:03:00]}  c5 {[%clk 0:02:58]} 2. Nf3 {[%clk 0:03:00]}  Nc6 {[%clk 0:02:57]} 3. Bb5 {[%clk 0:02:59]}  g6 {[%clk 0:02:55]} 4. Bxc6 {[%clk 0:02:56]}  bxc6 {[%clk 0:02:52]} 5. O-O {[%clk 0:02:55]}  Bg7 {[%clk 0:02:51]} 6. Re1 {[%clk 0:02:52]}  Qc7 {[%clk 0:02:50]} 7. c3 {[%clk 0:02:43]}  d6 {[%clk 0:02:48]} 8. h3 {[%clk 0:02:41]}  Nf6 {[%clk 0:02:45]} 9. d4 {[%clk 0:02:37]}  cxd4 {[%clk 0:02:44]} 10. cxd4 {[%clk 0:02:38]}  O-O {[%clk 0:02:44]} 11. Nc3 {[%clk 0:02:39]}  c5 {[%clk 0:02:38]} 12. e5 {[%clk 0:02:30]}  dxe5 {[%clk 0:02:37]} 13. dxe5 {[%clk 0:02:31]}  Rd8 {[%clk 0:02:36]} 14. Qe2 {[%clk 0:02:07]}  Nd5 {[%clk 0:02:35]} 15. Nxd5 {[%clk 0:01:25]}  Rxd5 {[%clk 0:02:33]} 16. Bd2 {[%clk 0:01:20]}  Bf5 {[%clk 0:02:10]} 17. Bc3 {[%clk 0:01:20]}  Rad8 {[%clk 0:02:09]} 18. Rad1 {[%clk 0:01:04]}  Qd7 {[%clk 0:02:00]} 19. Rxd5 {[%clk 0:01:03]}  Qxd5 {[%clk 0:01:59]} 20. Qa6 {[%clk 0:01:03]}  Bxh3 {[%clk 0:01:34]} 21. Qxa7 {[%clk 0:01:01]}  Bg4 {[%clk 0:01:12]} 22. Qxe7 {[%clk 0:00:56]}  Bxf3 {[%clk 0:01:08]} 23. gxf3 {[%clk 0:00:56]}  Rf8 {[%clk 0:00:42]} 24. Kg2 {[%clk 0:00:48]}  h5 {[%clk 0:00:28]} 25. a4 {[%clk 0:00:46]}  c4 {[%clk 0:00:17]} 26. a5 {[%clk 0:00:43]}  Bh6 {[%clk 0:00:12]} 27. a6 {[%clk 0:00:40]}  Bf4 {[%clk 0:00:07]} 28. Re4 {[%clk 0:00:37]}  Bd2 {[%clk 0:00:03]} 29. Rd4 {[%clk 0:00:34]} 1-0


[Site "https://www.chess.com"]

[Event "Titled Tuesday Blitz January 11 2022"]
[White "Sorokin, Aleksey"]
[Black "Klenburg, Michael"]
[WhiteFideId "24176460"]
[BlackFideId "14102072"]
[WhiteElo "2476"]
[BlackElo "2359"]
[Result "1-0"]
[Round "03"]
[TimeControl "180+1"]
[Date "2022.01.11"]
[WhiteClock "0:01:12"]
[BlackClock "0:00:03"]

1. Nf3 {[%clk 0:03:00]}  Nf6 {[%clk 0:02:58]} 2. c4 {[%clk 0:03:00]}  g6 {[%clk 0:02:57]} 3. Nc3 {[%clk 0:03:00]}  Bg7 {[%clk 0:02:57]} 4. e4 {[%clk 0:03:00]}  O-O {[%clk 0:02:57]} 5. d4 {[%clk 0:03:00]}  d6 {[%clk 0:02:57]} 6. Be2 {[%clk 0:03:00]}  e5 {[%clk 0:02:57]} 7. O-O {[%clk 0:03:00]}  Nc6 {[%clk 0:02:56]} 8. d5 {[%clk 0:03:00]}  Ne7 {[%clk 0:02:56]} 9. b4 {[%clk 0:03:01]}  Ne8 {[%clk 0:02:51]} 10. a4 {[%clk 0:02:59]}  f5 {[%clk 0:02:51]} 11. a5 {[%clk 0:02:55]}  Nf6 {[%clk 0:02:47]} 12. Re1 {[%clk 0:02:54]}  h6 {[%clk 0:02:18]} 13. Nd2 {[%clk 0:02:50]}  Kh8 {[%clk 0:02:05]} 14. a6 {[%clk 0:02:46]}  b6 {[%clk 0:02:01]} 15. c5 {[%clk 0:02:47]}  fxe4 {[%clk 0:01:20]} 16. Ndxe4 {[%clk 0:02:46]}  Nf5 {[%clk 0:01:20]} 17. Nxf6 {[%clk 0:02:38]}  Qxf6 {[%clk 0:01:18]} 18. Ne4 {[%clk 0:02:37]}  Qe7 {[%clk 0:01:18]} 19. cxd6 {[%clk 0:02:33]}  cxd6 {[%clk 0:01:17]} 20. b5 {[%clk 0:02:33]}  Rd8 {[%clk 0:00:43]} 21. Ba3 {[%clk 0:02:31]}  Bf8 {[%clk 0:00:40]} 22. Rc1 {[%clk 0:02:30]}  Qf7 {[%clk 0:00:39]} 23. Bg4 {[%clk 0:02:27]}  Be7 {[%clk 0:00:34]} 24. Rc7 {[%clk 0:02:26]}  Rd7 {[%clk 0:00:31]} 25. Qc1 {[%clk 0:02:24]}  Qe8 {[%clk 0:00:27]} 26. Bxf5 {[%clk 0:02:15]}  gxf5 {[%clk 0:00:26]} 27. Qxh6+ {[%clk 0:02:13]}  Kg8 {[%clk 0:00:25]} 28. Rxd7 {[%clk 0:02:05]}  Bxd7 {[%clk 0:00:25]} 29. Nxd6 {[%clk 0:02:02]}  Qf8 {[%clk 0:00:21]} 30. Qg6+ {[%clk 0:01:59]}  Qg7 {[%clk 0:00:21]} 31. Qxg7+ {[%clk 0:01:53]}  Kxg7 {[%clk 0:00:21]} 32. Nxf5+ {[%clk 0:01:52]}  Bxf5 {[%clk 0:00:21]} 33. Bxe7 {[%clk 0:01:53]}  Bd3 {[%clk 0:00:21]} 34. Rxe5 {[%clk 0:01:48]}  Bxb5 {[%clk 0:00:21]} 35. d6 {[%clk 0:01:48]}  Bd7 {[%clk 0:00:19]} 36. h4 {[%clk 0:01:47]}  Kf7 {[%clk 0:00:16]} 37. h5 {[%clk 0:01:46]}  Rh8 {[%clk 0:00:15]} 38. f3 {[%clk 0:01:46]}  b5 {[%clk 0:00:14]} 39. g4 {[%clk 0:01:46]}  b4 {[%clk 0:00:14]} 40. Re4 {[%clk 0:01:43]}  Rb8 {[%clk 0:00:13]} 41. Rf4+ {[%clk 0:01:43]}  Ke6 {[%clk 0:00:13]} 42. Re4+ {[%clk 0:01:38]}  Kf7 {[%clk 0:00:12]} 43. Re2 {[%clk 0:01:38]}  b3 {[%clk 0:00:12]} 44. Rb2 {[%clk 0:01:38]}  Be6 {[%clk 0:00:11]} 45. Kf2 {[%clk 0:01:32]}  Rb6 {[%clk 0:00:11]} 46. Kg3 {[%clk 0:01:31]}  Rxa6 {[%clk 0:00:11]} 47. h6 {[%clk 0:01:28]}  Rc6 {[%clk 0:00:09]} 48. h7 {[%clk 0:01:22]}  Kg7 {[%clk 0:00:09]} 49. Re2 {[%clk 0:01:16]}  Bd7 {[%clk 0:00:08]} 50. Rh2 {[%clk 0:01:12]}  Rc8 {[%clk 0:00:05]} 51. g5 {[%clk 0:01:13]}  a5 {[%clk 0:00:04]} 52. Bf6+ {[%clk 0:01:12]}  Kg6 {[%clk 0:00:03]} 53. h8=Q {[%clk 0:01:12]}  Rxh8 {[%clk 0:00:02]} 54. Rxh8 {[%clk 0:01:12]}  a4 {[%clk 0:00:03]} 55. Bb2 {[%clk 0:01:12]}  Kxg5 {[%clk 0:00:03]} 56. Rd8 {[%clk 0:01:12]} 1-0


[Site "https://www.chess.com"]

[Event "Titled Tuesday Blitz January 11 2022"]
[White "Tregubov, Pavel V."]
[Black "Holt, Conrad"]
[WhiteFideId "4115341"]
[BlackFideId "2034387"]
[WhiteElo "2341"]
[BlackElo "2586"]
[Result "1-0"]
[Round "03"]
[TimeControl "180+1"]
[Date "2022.01.11"]
[WhiteClock "0:00:17"]
[BlackClock "0:00:01"]

1. e4 {[%clk 0:03:00]}  e6 {[%clk 0:03:00]} 2. d4 {[%clk 0:02:58]}  d5 {[%clk 0:03:00]} 3. exd5 {[%clk 0:02:59]}  exd5 {[%clk 0:03:00]} 4. Nf3 {[%clk 0:03:00]}  Bd6 {[%clk 0:02:59]} 5. c4 {[%clk 0:02:59]}  dxc4 {[%clk 0:02:59]} 6. Bxc4 {[%clk 0:02:58]}  Ne7 {[%clk 0:02:56]} 7. O-O {[%clk 0:02:54]}  O-O {[%clk 0:02:55]} 8. h3 {[%clk 0:02:53]}  Nd7 {[%clk 0:02:49]} 9. Nc3 {[%clk 0:02:53]}  Nb6 {[%clk 0:02:49]} 10. Bb3 {[%clk 0:02:52]}  Bf5 {[%clk 0:02:48]} 11. Re1 {[%clk 0:02:46]}  Nc6 {[%clk 0:02:41]} 12. Bg5 {[%clk 0:02:35]}  Be7 {[%clk 0:02:16]} 13. Bf4 {[%clk 0:02:34]}  Na5 {[%clk 0:02:13]} 14. Bc2 {[%clk 0:02:29]}  Bxc2 {[%clk 0:02:12]} 15. Qxc2 {[%clk 0:02:29]}  Nc6 {[%clk 0:02:05]} 16. Rad1 {[%clk 0:02:26]}  Nb4 {[%clk 0:02:02]} 17. Qe4 {[%clk 0:02:14]}  Re8 {[%clk 0:01:47]} 18. Qxb7 {[%clk 0:02:08]}  N4d5 {[%clk 0:01:38]} 19. Nxd5 {[%clk 0:02:08]}  Nxd5 {[%clk 0:01:20]} 20. Bg3 {[%clk 0:02:04]}  Rb8 {[%clk 0:01:17]} 21. Qxa7 {[%clk 0:02:02]}  Rxb2 {[%clk 0:01:14]} 22. Ne5 {[%clk 0:01:59]}  Qa8 {[%clk 0:01:07]} 23. Qxa8 {[%clk 0:01:45]}  Rxa8 {[%clk 0:01:06]} 24. Nc6 {[%clk 0:01:46]}  Bf8 {[%clk 0:00:54]} 25. Re5 {[%clk 0:01:40]}  Nc3 {[%clk 0:00:53]} 26. Rde1 {[%clk 0:01:34]}  f6 {[%clk 0:00:33]} 27. Ne7+ {[%clk 0:00:58]}  Kf7 {[%clk 0:00:27]} 28. R5e3 {[%clk 0:00:58]}  Rc2 {[%clk 0:00:18]} 29. a3 {[%clk 0:00:49]}  Rxa3 {[%clk 0:00:13]} 30. Nc6 {[%clk 0:00:42]}  Raa2 {[%clk 0:00:08]} 31. Nd8+ {[%clk 0:00:36]}  Kg6 {[%clk 0:00:09]} 32. Ne6 {[%clk 0:00:35]}  Bd6 {[%clk 0:00:08]} 33. Bxd6 {[%clk 0:00:29]}  cxd6 {[%clk 0:00:02]} 34. Rg3+ {[%clk 0:00:29]}  Kf7 {[%clk 0:00:01]} 35. Rxg7+ {[%clk 0:00:28]}  Ke8 {[%clk 0:00:02]} 36. Nc7+ {[%clk 0:00:18]}  Kf8 {[%clk 0:00:02]} 37. Rxh7 {[%clk 0:00:17]}  Ne2+ {[%clk 0:00:02]} 38. Kh2 {[%clk 0:00:17]}  Kg8 {[%clk 0:00:01]} 39. Rd7 {[%clk 0:00:17]} 1-0


[Site "https://www.chess.com"]

[Event "Titled Tuesday Blitz January 11 2022"]
[White "Williams, Simon K"]
[Black "Hess, Robert"]
[WhiteFideId "404454"]
[BlackFideId "2022036"]
[WhiteElo "2468"]
[BlackElo "2557"]
[Result "0-1"]
[Round "03"]
[TimeControl "180+1"]
[Date "2022.01.11"]
[WhiteClock "0:00:01"]
[BlackClock "0:00:03"]

1. e4 {[%clk 0:03:00]}  g6 {[%clk 0:03:00]} 2. d4 {[%clk 0:03:00]}  Bg7 {[%clk 0:03:00]} 3. Nc3 {[%clk 0:02:59]}  a6 {[%clk 0:03:00]} 4. h4 {[%clk 0:02:58]}  h6 {[%clk 0:02:58]} 5. f4 {[%clk 0:02:54]}  d5 {[%clk 0:02:58]} 6. Nxd5 {[%clk 0:02:43]}  c6 {[%clk 0:02:40]} 7. Nc3 {[%clk 0:02:38]}  Bxd4 {[%clk 0:02:30]} 8. Nf3 {[%clk 0:02:34]}  Bxc3+ {[%clk 0:02:29]} 9. bxc3 {[%clk 0:02:33]}  Qxd1+ {[%clk 0:02:30]} 10. Kxd1 {[%clk 0:02:34]}  Nf6 {[%clk 0:02:30]} 11. Bd3 {[%clk 0:02:30]}  Nbd7 {[%clk 0:02:00]} 12. e5 {[%clk 0:01:41]}  Ng4 {[%clk 0:01:43]} 13. Ke2 {[%clk 0:01:40]}  Nc5 {[%clk 0:01:44]} 14. h5 {[%clk 0:01:34]}  gxh5 {[%clk 0:01:26]} 15. Rxh5 {[%clk 0:01:32]}  Be6 {[%clk 0:01:19]} 16. Be3 {[%clk 0:01:18]}  Na4 {[%clk 0:01:07]} 17. Bd2 {[%clk 0:01:15]}  O-O-O {[%clk 0:00:44]} 18. Rh4 {[%clk 0:00:47]}  Rhg8 {[%clk 0:00:38]} 19. a3 {[%clk 0:00:42]}  c5 {[%clk 0:00:13]} 20. Rb1 {[%clk 0:00:31]}  c4 {[%clk 0:00:06]} 21. Bh7 {[%clk 0:00:30]}  Rg7 {[%clk 0:00:06]} 22. Be4 {[%clk 0:00:30]}  Nc5 {[%clk 0:00:06]} 23. f5 {[%clk 0:00:20]}  Nxe4 {[%clk 0:00:05]} 24. fxe6 {[%clk 0:00:19]}  fxe6 {[%clk 0:00:04]} 25. Rg1 {[%clk 0:00:12]}  Nxd2 {[%clk 0:00:02]} 26. Nxd2 {[%clk 0:00:12]}  b5 {[%clk 0:00:02]} 27. a4 {[%clk 0:00:12]}  Nxe5 {[%clk 0:00:02]} 28. axb5 {[%clk 0:00:12]}  axb5 {[%clk 0:00:03]} 29. Rh5 {[%clk 0:00:11]}  Rd5 {[%clk 0:00:03]} 30. Rxh6 {[%clk 0:00:10]}  Ng6 {[%clk 0:00:03]} 31. Nf3 {[%clk 0:00:09]}  Nf4+ {[%clk 0:00:03]} 32. Ke3 {[%clk 0:00:09]}  Nxg2+ {[%clk 0:00:02]} 33. Kf2 {[%clk 0:00:10]}  Rf5 {[%clk 0:00:01]} 34. Rxg2 {[%clk 0:00:10]}  Rgf7 {[%clk 0:00:02]} 35. Rg3 {[%clk 0:00:10]}  R5f6 {[%clk 0:00:03]} 36. Rxf6 {[%clk 0:00:10]}  exf6 {[%clk 0:00:04]} 37. Ke3 {[%clk 0:00:11]}  e5 {[%clk 0:00:04]} 38. Ke4 {[%clk 0:00:11]}  Kd7 {[%clk 0:00:04]} 39. Kd5 {[%clk 0:00:11]}  Kc7 {[%clk 0:00:04]} 40. Kc5 {[%clk 0:00:11]}  f5 {[%clk 0:00:04]} 41. Rg6 {[%clk 0:00:11]}  e4 {[%clk 0:00:04]} 42. Nd4 {[%clk 0:00:11]}  f4 {[%clk 0:00:03]} 43. Nxb5+ {[%clk 0:00:11]}  Kd7 {[%clk 0:00:03]} 44. Nd4 {[%clk 0:00:09]}  f3 {[%clk 0:00:03]} 45. Rd6+ {[%clk 0:00:09]}  Kc7 {[%clk 0:00:02]} 46. Re6 {[%clk 0:00:07]}  f2 {[%clk 0:00:02]} 47. Nb5+ {[%clk 0:00:06]}  Kd7 {[%clk 0:00:02]} 48. Rd6+ {[%clk 0:00:06]}  Ke7 {[%clk 0:00:03]} 49. Rd1 {[%clk 0:00:05]}  f1=Q {[%clk 0:00:03]} 50. Rxf1 {[%clk 0:00:05]}  Rxf1 {[%clk 0:00:04]} 51. Kxc4 {[%clk 0:00:05]}  Rd1 {[%clk 0:00:04]} 52. Nd4 {[%clk 0:00:05]}  Kf6 {[%clk 0:00:04]} 53. Kd5 {[%clk 0:00:04]}  Re1 {[%clk 0:00:03]} 54. Kc4 {[%clk 0:00:04]}  Ke5 {[%clk 0:00:03]} 55. Nc6+ {[%clk 0:00:03]}  Kf4 {[%clk 0:00:03]} 56. Nd4 {[%clk 0:00:03]}  Rd1 {[%clk 0:00:03]} 57. Ne6+ {[%clk 0:00:02]}  Ke3 {[%clk 0:00:03]} 58. Kc5 {[%clk 0:00:02]}  Kf2 {[%clk 0:00:02]} 59. c4 {[%clk 0:00:03]}  e3 {[%clk 0:00:02]} 60. Nf4 {[%clk 0:00:01]}  Kf3 {[%clk 0:00:03]} 61. Nd3 {[%clk 0:00:01]}  e2 {[%clk 0:00:03]} 0-1


[Site "https://www.chess.com"]

[Event "Titled Tuesday Blitz January 11 2022"]
[White "Zelbel, Patrick"]
[Black "Goncalves, Ivan Mesquita V"]
[WhiteFideId "24624322"]
[BlackFideId "2114224"]
[WhiteElo "2493"]
[BlackElo "2299"]
[Result "1-0"]
[Round "03"]
[TimeControl "180+1"]
[Date "2022.01.11"]
[WhiteClock "0:00:26"]
[BlackClock "0:00:16"]

1. e4 {[%clk 0:02:53]}  e5 {[%clk 0:02:59]} 2. f4 {[%clk 0:02:53]}  exf4 {[%clk 0:02:56]} 3. Nf3 {[%clk 0:02:53]}  g5 {[%clk 0:02:50]} 4. Nc3 {[%clk 0:02:52]}  d6 {[%clk 0:02:50]} 5. d4 {[%clk 0:02:52]}  c6 {[%clk 0:02:39]} 6. g3 {[%clk 0:02:50]}  g4 {[%clk 0:02:33]} 7. Nh4 {[%clk 0:02:50]}  f3 {[%clk 0:02:32]} 8. Be3 {[%clk 0:02:50]}  Qa5 {[%clk 0:02:29]} 9. Qd2 {[%clk 0:02:49]}  Be7 {[%clk 0:02:26]} 10. O-O-O {[%clk 0:02:48]}  b5 {[%clk 0:02:25]} 11. a3 {[%clk 0:02:29]}  Nf6 {[%clk 0:02:22]} 12. h3 {[%clk 0:02:25]}  h5 {[%clk 0:02:20]} 13. Kb1 {[%clk 0:02:18]}  b4 {[%clk 0:01:59]} 14. axb4 {[%clk 0:02:12]}  Qxb4 {[%clk 0:02:00]} 15. Bg5 {[%clk 0:01:44]}  Nbd7 {[%clk 0:01:46]} 16. e5 {[%clk 0:01:36]}  Rb8 {[%clk 0:01:36]} 17. b3 {[%clk 0:01:32]}  dxe5 {[%clk 0:01:29]} 18. dxe5 {[%clk 0:01:29]}  Nc5 {[%clk 0:01:13]} 19. Bxf6 {[%clk 0:01:21]}  Bxf6 {[%clk 0:00:45]} 20. exf6 {[%clk 0:01:22]}  Be6 {[%clk 0:00:45]} 21. Qd6 {[%clk 0:01:08]}  Nxb3 {[%clk 0:00:19]} 22. Qxb4 {[%clk 0:01:09]}  Rxb4 {[%clk 0:00:19]} 23. cxb3 {[%clk 0:01:08]}  Bxb3 {[%clk 0:00:20]} 24. Re1+ {[%clk 0:01:03]}  Kd7 {[%clk 0:00:20]} 25. Rh2 {[%clk 0:00:54]}  Rhb8 {[%clk 0:00:20]} 26. Kc1 {[%clk 0:00:51]}  Be6 {[%clk 0:00:19]} 27. Rd2+ {[%clk 0:00:48]}  Kc7 {[%clk 0:00:19]} 28. hxg4 {[%clk 0:00:43]}  hxg4 {[%clk 0:00:20]} 29. Ng6 {[%clk 0:00:38]}  Rb3 {[%clk 0:00:20]} 30. Rc2 {[%clk 0:00:35]}  Bf5 {[%clk 0:00:15]} 31. Re7+ {[%clk 0:00:32]}  Kd6 {[%clk 0:00:15]} 32. Rd2+ {[%clk 0:00:28]}  Kc5 {[%clk 0:00:16]} 33. Re5+ {[%clk 0:00:28]}  Kb4 {[%clk 0:00:16]} 34. Na2+ {[%clk 0:00:28]}  Ka3 {[%clk 0:00:16]} 35. Ra5# {[%clk 0:00:26]} 1-0


[Site "https://www.chess.com"]